bitfinex-derivatives/quotes_BTCF0:USTF0_20240910
["timestamp","ask_amount","ask_price","bid_price","bid_amount"]
[1725998122656,0.086226,57984.0,57974.0,0.2]
[1725998122852,0.2,57981.0,57980.0,0.086232]
[1725998123151,0.2,57981.0,57972.0,0.001]
[1725998123545,0.086233,57979.0,57976.0,0.086237]
[1725998123953,0.086233,57979.0,57977.0,0.086236]
[1725998124350,0.2,57981.0,57972.0,0.001]
[1725998124852,0.2,57981.0,57976.0,0.001]
[1725998125046,0.2,57981.0,57980.0,0.086232]
[1725998125254,0.086207,57997.0,57994.0,0.08621]
[1725998125444,0.086207,57997.0,57980.0,0.8]
[1725998125445,0.086202,58000.0,57990.0,0.2]
[1725998125649,0.2,58004.0,57991.0,0.1524]
[1725998126052,0.086202,58000.0,57996.0,0.086207]
[1725998126244,0.086202,58000.0,57991.0,0.1524]
[1725998126444,0.2,58004.0,57991.0,0.1524]
[1725998126649,0.0862,58002.0,57998.0,0.086204]
[1725998127247,0.2,58004.0,57998.0,0.086204]
[1725998127449,0.2,58000.0,57991.0,0.1524]
[1725998127646,0.2,58000.0,57995.0,0.086209]
[1725998127865,0.2,57996.0,57995.0,0.08621]
[1725998128960,0.2,57996.0,57995.0,0.08721]
[1725998129156,0.286208,57996.0,57995.0,0.001]
[1725998129661,0.086211,57994.0,57986.0,0.0783]
[1725998130365,0.2,57991.0,57986.0,0.0783]
[1725998130555,0.2,57991.0,57986.0,0.086222]
[1725998130855,0.28622,57988.0,57986.0,0.086222]
[1725998131061,0.086221,57987.0,57986.0,0.086222]
[1725998131257,0.2,57988.0,57978.0,0.05073634]
[1725998131464,0.086221,57987.0,57986.0,0.001]
[1725998131761,0.286221,57987.0,57986.0,0.001]
[1725998131959,0.086226,57984.0,57978.0,0.05073634]
[1725998132262,0.086226,57984.0,57983.0,0.086227]
[1725998132649,0.2,57987.0,57979.0,0.086233]
[1725998132854,0.286232,57980.0,57979.0,0.086233]
[1725998133863,0.2,57980.0,57979.0,0.086233]
[1725998134163,0.2,57980.0,57975.0,0.0774]
[1725998134164,0.2,57984.0,57980.0,0.086231]
[1725998134553,0.0775,57990.0,57975.0,0.0774]
[1725998134554,0.2,57988.0,57975.0,0.0774]
[1725998134752,0.2,57988.0,57985.0,0.086224]
[1725998134753,0.086224,57986.0,57985.0,0.086224]
[1725998134958,0.286215,57992.0,57978.0,0.2]
[1725998135259,0.286215,57992.0,57975.0,0.0774]
[1725998135260,0.086214,57992.0,57985.0,0.2]
[1725998135468,0.086214,57992.0,57981.0,0.2]
[1725998135469,0.086216,57991.0,57981.0,0.2]
[1725998135654,0.086216,57991.0,57989.0,0.086218]
[1725998135853,0.086216,57991.0,57990.0,0.086217]
[1725998136163,0.2,57992.0,57981.0,0.2]
[1725998136164,0.2,57992.0,57991.0,0.086215]
[1725998136465,0.10783755,57997.0,57992.0,0.086213]
[1725998136466,0.086212,57993.0,57992.0,0.086213]
[1725998136656,0.086212,57993.0,57980.0,0.087231]
[1725998136657,0.086221,57988.0,57986.0,0.086222]
[1725998136854,0.286221,57988.0,57986.0,0.086222]
[1725998137052,0.286221,57988.0,57982.0,0.004]
[1725998137053,0.086227,57983.0,57982.0,0.004]
[1725998137364,0.286228,57983.0,57982.0,0.086229]
[1725998137551,0.086228,57983.0,57982.0,0.086229]
[1725998137752,0.086223,57986.0,57985.0,0.086224]
[1725998138865,0.086223,57986.0,57985.0,0.087224]
[1725998139158,0.286223,57986.0,57985.0,0.087224]
[1725998141567,0.086218,57989.0,57988.0,0.08622]
[1725998141964,0.086213,57993.0,57986.0,0.05073634]
[1725998142163,0.086215,57992.0,57987.0,0.05073634]
[1725998142363,0.086215,57992.0,57988.0,0.05073634]
[1725998142568,0.086215,57992.0,57991.0,0.086215]
[1725998144158,0.086218,57989.0,57988.0,0.05173634]
[1725998144363,0.086218,57989.0,57988.0,0.001]
[1725998144570,0.172442,57987.0,57986.0,0.05069105]
[1725998144870,0.086236,57979.0,57978.0,0.086235]
[1725998145062,0.0795,57988.0,57975.0,0.0774]
[1725998145063,0.086238,57976.0,57975.0,0.163638]
[1725998145262,0.2,57978.0,57977.0,0.086236]
[1725998145574,0.286235,57978.0,57977.0,0.086236]
[1725998146573,0.166123,57986.0,57978.0,0.086235]
[1725998146574,0.086237,57979.0,57978.0,0.086235]
[1725998149270,0.086238,57976.0,57974.0,0.05069105]
[1725998149470,0.086238,57976.0,57970.0,0.06764846]
[1725998149471,0.086242,57973.0,57972.0,0.086242]
[1725998149670,0.0819,57978.0,57966.0,0.14944846]
[1725998149671,0.0819,57978.0,57975.0,0.086239]
[1725998149978,0.086238,57976.0,57975.0,0.086239]
[1725998151067,0.086232,57980.0,57979.0,0.086233]
[1725998151371,0.086232,57980.0,57973.0,0.086242]
[1725998151372,0.11174178,57983.0,57982.0,0.086227]
[1725998151570,0.11174178,57983.0,57973.0,0.086242]
[1725998151571,0.086222,57987.0,57986.0,0.086223]
[1725998151760,0.2,57991.0,57985.0,0.086224]
[1725998151761,0.086224,57986.0,57985.0,0.086224]
[1725998152163,0.086227,57983.0,57982.0,0.0847269]
[1725998152373,0.086227,57983.0,57979.0,0.0847269]
[1725998152374,0.086232,57980.0,57979.0,0.0847269]
[1725998152572,0.086232,57980.0,57979.0,0.29087998]
[1725998152768,0.086232,57980.0,57979.0,0.1709599]
[1725998152974,0.086232,57980.0,57979.0,0.086233]
[1725998158673,0.086238,57976.0,57975.0,0.0847269]
[1725998158880,0.086239,57975.0,57974.0,0.1709669]
[1725998159181,0.286239,57975.0,57974.0,0.08624]
[1725998161074,0.086246,57971.0,57970.0,0.086245]
[1725998161665,0.168035,57979.0,57978.0,0.086233]
[1725998161666,0.086235,57979.0,57978.0,0.086233]
[1725998161871,0.11152425,57979.0,57978.0,0.086233]
[1725998162281,0.02528925,57979.0,57978.0,0.086233]
[1725998162579,0.086233,57979.0,57978.0,0.086233]
[1725998162780,0.086226,57985.0,57984.0,0.086224]
[1725998163075,0.086241,57975.0,57974.0,0.08624]
[1725998163284,0.086245,57972.0,57971.0,0.086245]
[1725998164879,0.08625,57968.0,57967.0,0.08625]
[1725998165786,0.2,57975.0,57964.0,0.18116422]
[1725998165787,0.2,57975.0,57970.0,0.086246]
[1725998165980,0.086245,57971.0,57970.0,0.086246]
[1725998166689,0.2,57975.0,57973.0,0.086242]
[1725998166876,0.24309251,57975.0,57974.0,0.06783051]
[1725998167187,0.086239,57975.0,57974.0,0.06783051]
[1725998167486,0.086241,57974.0,57973.0,0.06783051]
[1725998167872,0.086241,57974.0,57973.0,0.086242]
[1725998169093,0.2833,57984.0,57973.0,0.40422223]
[1725998169280,0.2833,57984.0,57981.0,0.13710073]
[1725998169281,0.086229,57982.0,57981.0,0.13710073]
[1725998169480,0.086229,57982.0,57981.0,0.086229]
[1725998169688,0.11080805,57984.0,57983.0,0.086227]
[1725998169889,0.11080805,57984.0,57983.0,0.13709269]
[1725998169890,0.086226,57984.0,57983.0,0.13709269]
[1725998170780,0.086226,57984.0,57983.0,0.086227]
[1725998172091,0.086226,57984.0,57983.0,0.087227]
[1725998173191,0.086226,57984.0,57983.0,0.15505598]
[1725998174089,0.086221,57987.0,57986.0,0.086221]
[1725998175589,0.086221,57987.0,57986.0,0.087221]
[1725998175987,0.086221,57987.0,57986.0,0.001]
[1725998177091,0.086221,57987.0,57986.0,0.087223]
[1725998178091,0.086217,57990.0,57986.0,0.001]
[1725998178390,0.086201,58001.0,57995.0,0.086208]
[1725998178599,0.2367,58002.0,57995.0,0.086208]
[1725998179390,0.26145888,58002.0,57995.0,0.086208]
[1725998179787,0.26145888,58002.0,57995.0,0.087208]
[1725998180093,0.26145888,58002.0,57997.0,0.286205]
[1725998180094,0.086206,57998.0,57997.0,0.286205]
[1725998180796,0.086206,57998.0,57997.0,0.086205]
[1725998181397,0.086201,58001.0,58000.0,0.086202]
[1725998181893,0.086201,58001.0,58000.0,0.13695463]
[1725998182088,0.16171269,58001.0,58000.0,0.086202]
[1725998182798,0.13771715,58005.0,58000.0,1.11724]
[1725998183094,0.13771715,58005.0,57998.0,0.086205]
[1725998183095,0.15361139,58004.0,58003.0,0.086198]
[1725998183296,0.03329524,58004.0,58003.0,0.086198]
[1725998184391,0.03329524,58004.0,58003.0,0.247698]
[1725998184587,0.12031615,58011.0,58003.0,1.2787]
[1725998184789,0.32599586,58018.0,58003.0,1.2787]
[1725998184790,0.12031615,58015.0,58009.0,0.086189]
[1725998184988,0.17963506,58025.0,58009.0,0.086189]
[1725998184989,0.10297248,58013.0,58009.0,0.086189]
[1725998185187,0.22388215,58025.0,58012.0,0.2]
[1725998185188,0.10297248,58015.0,58012.0,0.2]
[1725998185387,0.10297248,58019.0,58012.0,0.2]
[1725998186298,0.10297248,58022.0,58012.0,0.2]
[1725998186592,0.10297248,58022.0,58012.0,0.201]
[1725998186795,0.10297248,58022.0,58017.0,0.086176]
[1725998187000,0.10297248,58021.0,58017.0,0.086176]
[1725998187301,0.10297248,58023.0,58017.0,0.086176]
[1725998187594,0.2,58021.0,58012.0,0.001]
[1725998187797,0.10297248,58019.0,58012.0,0.001]
[1725998188002,0.2,58017.0,58012.0,0.001]
[1725998188202,0.30297248,58017.0,58012.0,0.087184]
[1725998188405,0.10297248,58019.0,58018.0,0.086175]
[1725998188693,0.086171,58022.0,58018.0,0.086175]
[1725998188694,0.18914348,58022.0,58018.0,0.086175]
[1725998189096,0.10297248,58022.0,58016.0,0.1595]
[1725998189297,0.086174,58019.0,58016.0,0.1595]
[1725998189502,0.086174,58019.0,58016.0,0.245678]
[1725998189798,0.10297248,58024.0,58018.0,0.001]
[1725998190004,0.086162,58028.0,58024.0,0.086166]
[1725998190195,0.086162,58027.0,58025.0,0.086164]
[1725998192501,0.086162,58027.0,58025.0,0.087164]
[1725998192797,0.086163,58026.0,58025.0,0.087164]
[1725998193102,0.086159,58030.0,58025.0,0.001]
[1725998193301,0.086159,58030.0,58025.0,0.201]
[1725998193492,0.086159,58030.0,58029.0,0.086159]
[1725998194193,0.086161,58028.0,58025.0,0.02551635]
[1725998194503,0.02537294,58032.0,58025.0,0.02551635]
[1725998194701,0.2,58033.0,58025.0,0.02551635]
[1725998194903,0.086159,58030.0,58029.0,0.086159]
[1725998195705,0.086163,58026.0,58025.0,0.02551635]
[1725998195907,0.086163,58026.0,58025.0,0.001]
[1725998196104,0.086166,58025.0,58018.0,0.06]
[1725998196294,0.086169,58023.0,58021.0,0.086171]
[1725998196499,0.2,58026.0,58021.0,0.086171]
[1725998196695,0.2,58022.0,58017.0,0.086175]
[1725998196903,0.08618,58015.0,58014.0,0.086181]
[1725998197096,0.2,58019.0,58011.0,0.086185]
[1725998197097,0.082186,58012.0,58011.0,0.086185]
[1725998197297,0.082186,58012.0,58009.0,0.02550977]
[1725998197298,0.2,58022.0,58010.0,0.2]
[1725998197508,0.086174,58019.0,58018.0,0.086174]
[1725998198296,0.086178,58017.0,58013.0,0.2]
[1725998198596,0.086173,58020.0,58013.0,0.2]
[1725998199199,0.086168,58024.0,58018.0,0.001]
[1725998199497,0.086168,58023.0,58022.0,0.086169]
[1725998199900,0.086171,58021.0,58016.0,0.2]
[1725998200597,0.086171,58021.0,58017.0,0.0763]
[1725998201711,0.086171,58021.0,58020.0,0.086172]
[1725998202412,0.086175,58018.0,58017.0,0.001]
[1725998202914,0.086175,58018.0,58017.0,0.086177]
[1725998203609,0.086175,58018.0,58017.0,0.001]
[1725998204595,0.37235,58018.0,58017.0,0.001]
[1725998204800,0.286175,58018.0,58017.0,0.001]
[1725998205400,0.37235,58018.0,58017.0,0.001]
[1725998205599,0.19781099,58018.0,58017.0,0.001]
[1725998206208,0.086171,58021.0,58017.0,0.001]
[1725998206412,0.086174,58019.0,58018.0,0.083]
[1725998206599,0.086175,58018.0,58017.0,0.087176]
[1725998207407,0.086175,58018.0,58017.0,0.001]
[1725998207709,0.17235,58018.0,58017.0,0.001]
[1725998208103,0.086178,58016.0,58015.0,0.05075263]
[1725998208305,0.08618,58015.0,58014.0,0.06779994]
[1725998208504,0.08618,58015.0,58014.0,0.15397894]
[1725998209196,0.08618,58015.0,58014.0,0.086179]
[1725998209897,0.08618,58015.0,58014.0,0.087179]
[1725998210100,0.08618,58015.0,58014.0,0.001]
[1725998210301,0.086175,58018.0,58014.0,0.001]
[1725998210501,0.086175,58018.0,58017.0,0.06759089]
[1725998211209,0.086175,58018.0,58015.0,0.08478622]
[1725998211608,0.086178,58017.0,58015.0,0.08478622]
[1725998211910,0.04306578,58017.0,58015.0,0.08478622]
[1725998212212,0.04306578,58017.0,58012.0,0.2245574]
[1725998212614,0.38913948,58024.0,58015.0,0.001]
[1725998212815,0.086178,58016.0,58015.0,0.001]
[1725998213110,0.286178,58016.0,58015.0,0.001]
[1725998214311,0.286178,58016.0,58007.0,0.086192]
[1725998214312,0.086186,58011.0,58007.0,0.086192]
[1725998214616,0.086186,58011.0,58009.0,0.086189]
[1725998214911,0.086181,58015.0,58007.0,0.22481231]
[1725998215210,0.086175,58019.0,58012.0,0.2]
[1725998215412,0.086176,58018.0,58015.0,0.08618]
[1725998215609,0.086177,58017.0,58015.0,0.08618]
[1725998215815,0.086178,58016.0,58013.0,0.0843]
[1725998216006,0.08618,58015.0,58013.0,0.0843]
[1725998216201,0.086181,58014.0,58013.0,0.0843]
[1725998216599,0.10297248,58021.0,58013.0,0.0843]
[1725998216813,0.086179,58016.0,58013.0,0.0843]
[1725998217908,0.086181,58015.0,58013.0,0.0843]
[1725998218107,0.086181,58015.0,58013.0,0.10930725]
[1725998218499,0.086181,58014.0,58013.0,0.10930725]
[1725998219914,0.086181,58014.0,58013.0,0.02500725]
[1725998220111,0.086181,58014.0,58013.0,0.11726445]
[1725998222414,0.19740555,58014.0,58013.0,0.11726445]
[1725998223002,0.086181,58014.0,58013.0,0.11726445]
[1725998223618,0.172362,58014.0,58013.0,0.11726445]
[1725998224915,0.258543,58014.0,58013.0,0.11726445]
[1725998225117,0.258543,58014.0,58013.0,0.08466251]
[1725998225118,0.086181,58014.0,58013.0,0.08466251]
[1725998225320,0.086181,58014.0,58012.0,0.08466251]
[1725998225321,0.086183,58013.0,58012.0,0.08466251]
[1725998225514,0.086187,58010.0,58004.0,0.086196]
[1725998225709,0.086187,58010.0,58002.0,0.19762999]
[1725998225710,0.258561,58010.0,58009.0,0.10161726]
[1725998225914,0.258561,58010.0,58005.0,0.25687796]
[1725998225915,0.086195,58005.0,58004.0,0.10161726]
[1725998226114,0.086195,58005.0,58004.0,0.11740497]
[1725998226506,0.086195,58005.0,58004.0,0.202103]
[1725998226712,0.086195,58005.0,58004.0,0.09069803]
[1725998227118,0.086195,58005.0,58004.0,0.006]
[1725998227620,0.17239,58005.0,58004.0,0.006]
[1725998228218,0.086193,58007.0,58004.0,0.006]
[1725998228419,0.0763,58013.0,58007.0,0.086192]
[1725998228723,0.086184,58012.0,58011.0,0.05078209]
[1725998228913,0.086183,58013.0,58008.0,0.06772374]
[1725998229118,0.086189,58009.0,58008.0,0.15391374]
[1725998229419,0.086189,58009.0,58008.0,0.15388953]
[1725998229625,0.086189,58009.0,58008.0,0.06769953]
[1725998229922,0.08619,58008.0,58007.0,0.06769953]
[1725998230113,0.08619,58008.0,58007.0,0.086192]
[1725998230517,0.0762,58019.0,58007.0,0.2]
[1725998230518,0.086177,58017.0,58007.0,0.2]
[1725998230727,0.086177,58017.0,58014.0,0.05077261]
[1725998231019,0.086178,58016.0,58015.0,0.05076514]
[1725998231422,0.086178,58016.0,58012.0,0.15387981]
[1725998231423,0.08618,58015.0,58014.0,0.05076514]
[1725998231627,0.086183,58013.0,58012.0,0.086183]
[1725998232422,0.086177,58017.0,58011.0,0.06769681]
[1725998232724,0.172356,58016.0,58015.0,0.05079084]
[1725998233320,0.086178,58016.0,58015.0,0.05079084]
[1725998235022,0.086178,58016.0,58015.0,0.08618]
[1725998235222,0.086178,58016.0,58015.0,0.08718]
[1725998235537,0.18914248,58022.0,58015.0,0.201]
[1725998235826,0.08617,58022.0,58015.0,0.201]
[1725998236020,0.086166,58025.0,58019.0,0.2]
[1725998236225,0.086168,58023.0,58022.0,0.086168]
[1725998237722,0.10297248,58029.0,58022.0,0.2]
[1725998237929,0.086158,58030.0,58029.0,0.086159]
[1725998238133,0.10297248,58031.0,58030.0,0.086158]
[1725998238424,0.10297248,58032.0,58030.0,0.086158]
[1725998238618,0.086156,58031.0,58030.0,0.086158]
[1725998239831,0.10297248,58033.0,58032.0,0.086155]
[1725998240129,0.10297248,58034.0,58032.0,0.086155]
[1725998240628,0.10297248,58034.0,58033.0,0.086153]
[1725998240826,0.086154,58033.0,58030.0,0.201]
[1725998241025,0.10297248,58036.0,58030.0,0.201]
[1725998241228,0.086155,58032.0,58031.0,0.086155]
[1725998241527,0.086151,58035.0,58033.0,0.086153]
[1725998241834,0.02793309,58034.0,58033.0,0.087153]
[1725998242024,0.086151,58035.0,58033.0,0.087153]
[1725998242224,0.086152,58034.0,58033.0,0.087153]
[1725998242430,0.2,58040.0,58029.0,0.02445314]
[1725998242431,0.2,58040.0,58034.0,0.086151]
[1725998243129,0.2,58040.0,58031.0,0.001]
[1725998243130,0.02487009,58045.0,58039.0,0.2]
[1725998243324,0.12031615,58056.0,58039.0,0.2]
[1725998243325,0.164828,58050.0,58039.0,0.2]
[1725998243522,0.3701,58054.0,58039.0,0.2]
[1725998243523,0.37098,58054.0,58039.0,0.2]
[1725998243725,0.086139,58043.0,58039.0,0.2]
[1725998243923,0.086139,58043.0,58042.0,0.08614]
[1725998244429,0.086125,58052.0,58039.0,0.2]
[1725998244629,0.08613,58049.0,58040.0,0.086142]
[1725998244933,0.08613,58049.0,58041.0,0.086141]
[1725998245131,0.086135,58046.0,58039.0,0.22441772]
[1725998245333,0.22521784,58054.0,58043.0,0.2]
[1725998245532,0.008,58063.0,58039.0,0.02541772]
[1725998245533,0.00854186,58061.0,58050.0,0.2]
[1725998245726,0.086116,58059.0,58056.0,0.086119]
[1725998246230,0.0792,58062.0,58054.0,0.2]
[1725998246424,0.086117,58058.0,58054.0,0.2]
[1725998246731,0.0792,58062.0,58045.0,0.064]
[1725998246931,0.10457376,58062.0,58052.0,0.2]
[1725998247131,0.086116,58058.0,58054.0,0.086121]
[1725998247437,0.10457376,58062.0,58052.0,0.2]
[1725998247625,0.08612,58056.0,58052.0,0.2]
[1725998247825,0.10457376,58062.0,58054.0,0.001]
[1725998248429,0.2,58061.0,58054.0,0.001]
[1725998248829,0.2,58061.0,58052.0,0.286125]
[1725998249034,0.08612,58056.0,58052.0,0.287125]
[1725998249236,0.2,58061.0,58052.0,0.087125]
[1725998249439,0.086123,58053.0,58052.0,0.02602179]
[1725998249940,0.286123,58053.0,58052.0,0.001]
[1725998250232,0.41701935,58053.0,58052.0,0.001]
[1725998250435,0.41701935,58053.0,58046.0,0.086133]
[1725998250436,0.08613,58049.0,58046.0,0.086133]
[1725998250827,0.30385248,58053.0,58046.0,0.086133]
[1725998250828,0.086131,58048.0,58046.0,0.086133]
[1725998251024,0.086131,58048.0,58047.0,0.086132]
[1725998251237,0.086119,58057.0,58045.0,0.2]
[1725998251238,0.086125,58052.0,58045.0,0.2]
[1725998251539,0.02464945,58057.0,58044.0,0.26731579]
[1725998251540,0.086121,58055.0,58051.0,0.286126]
[1725998251729,0.02792349,58054.0,58051.0,0.286126]
[1725998252040,0.086125,58052.0,58048.0,0.086129]
[1725998252226,0.086123,58053.0,58047.0,0.2]
[1725998252633,0.086125,58052.0,58051.0,0.086126]
[1725998254035,0.086125,58052.0,58051.0,0.087126]
[1725998254540,0.10297248,58058.0,58051.0,0.201]
[1725998254837,0.02792298,58057.0,58051.0,0.201]
[1725998255138,0.02792298,58056.0,58051.0,0.201]
[1725998255334,0.17225,58052.0,58051.0,0.001]
[1725998255532,0.11404925,58052.0,58051.0,0.001]
[1725998255729,0.11404863,58052.0,58051.0,0.001]
[1725998256737,0.086125,58052.0,58051.0,0.087126]
[1725998257331,0.04303797,58052.0,58051.0,0.087126]
[1725998258036,0.08612,58056.0,58053.0,0.086122]
[1725998258248,0.086121,58055.0,58053.0,0.086122]
[1725998258534,0.086113,58061.0,58053.0,0.2]
[1725998258836,0.086113,58060.0,58058.0,0.086115]
[1725998260133,0.02443732,58062.0,58051.0,0.02588261]
[1725998260333,0.086125,58052.0,58051.0,0.001]
[1725998260535,0.086122,58055.0,58053.0,0.001]
[1725998260728,0.086122,58055.0,58054.0,0.086122]
[1725998261130,0.1622,58059.0,58053.0,0.2]
[1725998261131,0.086117,58058.0,58053.0,0.2]
[1725998261439,0.0004,58066.0,58065.0,0.086106]
[1725998261636,0.004,58084.0,58065.0,0.2]
[1725998261827,0.008,58086.0,58061.0,0.05479084]
[1725998261828,0.2,58080.0,58061.0,0.05479084]
[1725998262140,0.2,58080.0,58067.0,0.2]
[1725998262333,0.086087,58078.0,58072.0,0.2]
[1725998262737,0.086088,58077.0,58072.0,0.2]
[1725998262931,0.086081,58082.0,58072.0,0.2]
[1725998263135,0.2,58086.0,58072.0,0.2]
[1725998263640,0.02501638,58086.0,58077.0,0.286087]
[1725998263840,0.25617961,58092.0,58077.0,0.2]
[1725998263841,0.086079,58083.0,58077.0,0.2]
[1725998264037,0.45617961,58092.0,58077.0,0.2]
[1725998264038,0.54312561,58092.0,58077.0,0.2]
[1725998264235,0.56662323,58092.0,58077.0,0.2]
[1725998264546,0.086081,58082.0,58073.0,0.2]
[1725998264838,0.086085,58079.0,58073.0,0.2]
[1725998265240,0.08609,58076.0,58072.0,0.001]
[1725998265444,0.08609,58076.0,58069.0,0.2]
[1725998266041,0.08609,58076.0,58062.0,0.15252111]
[1725998266042,0.3584,58078.0,58062.0,0.05079084]
[1725998266345,0.3584,58078.0,58059.0,0.26772111]
[1725998266346,0.086103,58067.0,58060.0,0.05079084]
[1725998266642,0.086094,58073.0,58065.0,0.086105]
[1725998266842,0.086094,58073.0,58068.0,0.2]
[1725998268047,0.2,58073.0,58065.0,0.001]
[1725998268236,0.08611,58062.0,58059.0,0.05079084]
[1725998268636,0.08611,58062.0,58058.0,0.05079084]
[1725998268842,0.08611,58062.0,58057.0,0.05079084]
[1725998269045,0.08611,58062.0,58056.0,0.2]
[1725998269547,0.08611,58062.0,58056.0,0.25079084]
[1725998270151,0.086112,58061.0,58056.0,0.25079084]
[1725998270348,0.086114,58060.0,58059.0,0.001]
[1725998270951,0.086114,58060.0,58057.0,0.05079084]
[1725998270952,0.086115,58059.0,58057.0,0.05079084]
[1725998271337,0.2,58069.0,58057.0,0.13690784]
[1725998271537,0.2,58069.0,58059.0,0.001]
[1725998271953,0.22477308,58069.0,58059.0,0.001]
[1725998272252,0.086111,58062.0,58059.0,0.001]
[1725998272638,0.086111,58062.0,58061.0,0.0004]
[1725998273949,0.086111,58062.0,58061.0,0.0014]
[1725998274151,1.40279,58062.0,58061.0,0.0014]
[1725998274345,0.086128,58050.0,58049.0,0.004]
[1725998274553,0.086128,58050.0,58045.0,0.086135]
[1725998274554,0.2,58050.0,58045.0,0.086135]
[1725998274748,0.086132,58048.0,58045.0,0.086135]
[1725998275145,0.086133,58047.0,58045.0,0.086135]
[1725998275446,0.086134,58046.0,58045.0,0.086135]
[1725998276541,0.086134,58046.0,58045.0,0.094135]
[1725998277151,0.2,58050.0,58045.0,0.008]
[1725998277346,0.086134,58046.0,58045.0,0.008]
[1725998278255,0.086135,58045.0,58043.0,0.11103983]
[1725998278442,0.086137,58044.0,58043.0,0.02513983]
[1725998278646,0.45278801,58050.0,58033.0,0.05079084]
[1725998278647,0.2,58046.0,58037.0,0.086147]
[1725998278844,0.2,58046.0,58034.0,0.166551]
[1725998278845,0.086136,58045.0,58034.0,0.166551]
[1725998279052,0.08615,58035.0,58034.0,0.0804]
[1725998279352,0.086143,58040.0,58027.0,0.2892]
[1725998279353,0.086143,58040.0,58031.0,0.17085403]
[1725998279560,0.086143,58040.0,58031.0,0.086156]
[1725998279561,0.086153,58034.0,58031.0,0.086156]
[1725998279855,0.086153,58034.0,58033.0,0.06732312]
[1725998280052,0.086153,58034.0,58032.0,0.086154]
[1725998280262,0.086153,58033.0,58032.0,0.086154]
[1725998280448,0.086153,58033.0,58032.0,0.15348036]
[1725998280643,0.086153,58033.0,58028.0,0.08469803]
[1725998280946,0.086153,58033.0,58032.0,0.05050787]
[1725998281148,0.086153,58033.0,58028.0,0.05050787]
[1725998281149,0.286153,58033.0,58028.0,0.05050787]
[1725998281457,0.086156,58032.0,58029.0,0.13666587]
[1725998281651,0.36818,58037.0,58029.0,0.086158]
[1725998281855,0.3673,58037.0,58036.0,0.0004]
[1725998282050,0.453447,58037.0,58036.0,0.0004]
[1725998282242,0.539594,58037.0,58036.0,0.0004]
[1725998282447,0.453447,58037.0,58036.0,0.0004]
[1725998283650,0.253447,58037.0,58036.0,0.0004]
[1725998283959,0.0249527,58038.0,58037.0,0.086147]
[1725998284145,0.086143,58040.0,58038.0,0.086144]
[1725998284346,0.086146,58038.0,58037.0,0.0004]
[1725998285149,0.086146,58038.0,58037.0,0.086547]
[1725998285941,0.11052777,58038.0,58037.0,0.086547]
[1725998287156,0.11352777,58038.0,58037.0,0.086547]
[1725998287760,0.11352777,58038.0,58037.0,0.0054]
[1725998288559,0.71659377,58038.0,58037.0,0.0054]
[1725998289253,0.71659377,58038.0,58037.0,0.0044]
[1725998289959,0.19967377,58038.0,58037.0,0.0044]
[1725998290345,0.20267377,58038.0,58037.0,0.0054]
[1725998290550,0.11652777,58038.0,58037.0,0.0054]
[1725998290755,0.11652777,58038.0,58037.0,0.0014]
[1725998291451,0.11152777,58038.0,58037.0,0.0004]
[1725998291648,0.11852777,58038.0,58037.0,0.0014]
[1725998291856,0.20467377,58038.0,58037.0,0.0014]
[1725998292159,0.20367377,58038.0,58037.0,0.0014]
[1725998293059,0.20267377,58038.0,58037.0,0.0014]
[1725998293864,0.20467377,58038.0,58037.0,0.0014]
[1725998294463,0.20367377,58038.0,58037.0,0.0014]
[1725998294762,0.20267377,58038.0,58037.0,0.0014]
[1725998295566,0.20267377,58038.0,58037.0,0.0024]
[1725998296159,0.20167377,58038.0,58037.0,0.0014]
[1725998296657,0.19667377,58038.0,58037.0,0.0014]
[1725998296867,0.20267377,58038.0,58037.0,0.0024]
[1725998297561,0.20267377,58038.0,58037.0,0.0014]
[1725998299069,0.28881977,58038.0,58037.0,0.0014]
[1725998299454,0.172324,58027.0,58024.0,0.004]
[1725998299659,0.086165,58026.0,58025.0,0.086165]
[1725998300057,0.086165,58026.0,58019.0,0.21470787]
[1725998300058,0.086168,58023.0,58022.0,0.164068]
[1725998300261,0.086164,58026.0,58025.0,0.086163]
[1725998300962,0.087164,58026.0,58025.0,0.094163]
[1725998301461,0.088164,58026.0,58025.0,0.108163]
[1725998302065,0.087164,58026.0,58025.0,0.094163]
[1725998302360,0.04505765,58026.0,58025.0,0.106163]
[1725998302569,0.04405765,58026.0,58025.0,0.098163]
[1725998302768,0.002,58026.0,58025.0,0.105163]
[1725998304561,0.288163,58026.0,58025.0,0.105163]
[1725998306264,0.202,58026.0,58025.0,0.105163]
[1725998307473,0.002,58026.0,58025.0,0.105163]
[1725998308472,0.002,58026.0,58025.0,1.594493]
[1725998308667,0.286144,58039.0,58038.0,0.086146]
[1725998308968,0.31407622,58039.0,58038.0,0.086146]
[1725998309173,0.3389244,58039.0,58038.0,0.086146]
[1725998309568,0.31099218,58039.0,58038.0,0.086146]
[1725998309872,0.31099218,58039.0,58038.0,0.087146]
[1725998309873,0.31899218,58039.0,58038.0,0.087146]
[1725998310064,0.32099218,58039.0,58038.0,0.087146]
[1725998310670,0.23284818,58039.0,58038.0,0.087146]
[1725998310871,0.23284818,58039.0,58038.0,0.090146]
[1725998311775,0.31899218,58039.0,58038.0,0.090146]
[1725998311971,0.31499218,58039.0,58038.0,0.089146]
[1725998312570,0.31499218,58039.0,58038.0,0.13965387]
[1725998312869,0.31499218,58039.0,58038.0,0.089146]